bitfinex-derivatives/quotes_ETHF0:USTF0_20251024
["timestamp","ask_amount","ask_price","bid_price","bid_amount"]
[1761271628569,0.35229836,3880.4,3880.3,10.37361031]
[1761271630070,0.00239836,3880.4,3880.3,10.37361031]
[1761271635478,0.00239836,3880.4,3880.3,9.7676]
[1761271635670,0.00239836,3880.4,3880.3,10.37361031]
[1761271635875,0.35229836,3880.4,3880.3,10.37361031]
[1761271637180,0.56699836,3880.4,3880.3,10.37361031]
[1761271637367,0.56699836,3880.4,3880.3,1.28761031]
[1761271637569,0.56699836,3880.4,3880.3,10.37161031]
[1761271637969,0.56699836,3880.4,3880.3,1.28761031]
[1761271638170,0.56699836,3880.4,3880.3,10.37161031]
[1761271639379,0.56699836,3880.4,3880.3,10.37061031]
[1761271641875,0.78509836,3880.4,3880.3,10.13981031]
[1761271642076,0.78509836,3880.4,3880.3,10.37061031]
[1761271647185,0.56699836,3880.4,3880.3,10.37061031]
[1761271648888,0.35229836,3880.4,3880.3,10.37061031]
[1761271650084,0.323,3880.3,3880.0,1.37459005]
[1761271650285,0.323,3880.3,3879.3,1.15969]
[1761271650286,0.323,3879.7,3879.3,0.2156]
[1761271650492,0.228,3879.2,3879.1,0.2156]
[1761271650687,0.7775,3879.2,3879.1,9.2976]
[1761271651184,0.7775,3879.2,3879.1,10.2175]
[1761271651185,0.323,3879.2,3879.1,10.2175]
[1761271651389,0.323,3879.9,3879.5,0.46385]
[1761271651589,1.12542182,3879.8,3879.7,0.4412]
[1761271651790,1.12542182,3879.8,3879.7,10.12921031]
[1761271651994,1.35192182,3879.8,3879.7,10.12921031]
[1761271653286,0.7775,3879.8,3879.7,10.12921031]
[1761271658697,0.7775,3879.8,3879.1,3.848]
[1761271658698,0.1285,3879.5,3879.3,1.06988031]
[1761271658889,0.3377,3879.9,3879.6,0.46384]
[1761271659091,0.5683,3879.9,3879.8,0.2166]
[1761271659286,0.5683,3879.9,3879.8,0.6776]
[1761271659496,0.7974,3879.9,3879.8,0.4471]
[1761271659689,0.3377,3879.8,3879.7,9.68901031]
[1761271659896,0.7974,3879.8,3879.7,9.083]
[1761271660495,0.7974,3879.8,3879.7,9.2996]
[1761271664099,0.5683,3879.8,3879.7,9.7606]
[1761271666203,0.5683,3879.8,3879.7,10.36661031]
[1761271666503,0.7974,3880.3,3880.2,0.4471]
[1761271666703,0.7974,3880.2,3880.1,9.083]
[1761271666906,1.37084719,3880.2,3880.1,9.083]
[1761271667806,1.37084719,3880.2,3880.1,9.2996]
[1761271673404,1.6246264,3880.2,3880.1,9.2996]
[1761271674306,1.6246264,3880.2,3880.1,9.5301]
[1761271674506,1.3955264,3880.2,3880.1,9.7606]
[1761271675611,1.14174719,3880.2,3880.1,9.7606]
[1761271676706,0.57344719,3880.2,3880.1,9.7606]
[1761271676901,0.00239836,3880.4,3880.3,0.6776]
[1761271677103,0.34009836,3880.4,3880.3,1.28361031]
[1761271678409,0.91629347,3880.4,3880.3,1.28361031]
[1761271679616,0.34009836,3880.4,3880.3,1.28361031]
[1761271680208,0.91640856,3880.4,3880.3,1.28361031]
[1761271680403,1.14700856,3880.4,3880.3,1.28361031]
[1761271683322,0.57069836,3880.4,3880.3,1.28361031]
[1761271685026,0.34009836,3880.4,3880.3,1.28361031]
[1761271685417,0.00239836,3880.4,3880.3,1.28361031]
[1761271685617,0.35159836,3880.4,3880.3,1.28361031]
[1761271687229,0.00239836,3880.4,3880.3,1.28361031]
[1761271687425,0.35159836,3880.4,3880.3,1.28361031]
[1761271688725,0.57179836,3880.4,3880.3,0.6776]
[1761271689628,0.35159836,3880.4,3880.3,0.6776]
[1761271692832,0.35159836,3880.4,3880.3,1.4411841]
[1761271693032,0.00239836,3880.4,3880.3,1.4411841]
[1761271693223,0.35159836,3880.4,3880.3,1.4411841]
[1761271696525,0.57179836,3880.4,3880.3,1.4411841]
[1761271696724,0.57179836,3880.4,3880.3,0.4471]
[1761271696927,0.57179836,3880.4,3880.3,0.6779]
[1761271697333,0.35159836,3880.4,3880.3,0.6779]
[1761271697736,0.57179836,3880.4,3880.3,0.6779]
[1761271698234,0.35159836,3880.4,3880.3,0.6779]
[1761271702937,0.4371,3880.2,3880.1,3.848]
[1761271703128,0.7863,3880.2,3880.1,13.152]
[1761271703837,1.36164716,3880.2,3880.1,13.152]
[1761271704042,1.36164716,3880.2,3880.1,12.928]
[1761271704340,1.36164716,3880.2,3880.1,9.08]
[1761271705038,1.36164716,3880.2,3880.1,9.304]
[1761271706930,1.36164716,3880.2,3880.1,9.08]
[1761271707529,1.36164716,3880.2,3880.1,9.304]
[1761271709742,1.36164716,3880.2,3880.1,9.08]
[1761271709942,1.61284443,3880.2,3880.1,9.08]
[1761271713236,1.61284443,3880.2,3880.1,9.3078]
[1761271715845,1.17574443,3880.2,3880.1,9.7692]
[1761271716040,1.17574443,3880.2,3880.1,9.5385]
[1761271716041,1.37944716,3880.2,3880.1,9.5385]
[1761271716239,1.37944716,3880.2,3880.1,9.3078]
[1761271716638,1.37944716,3880.2,3880.1,9.5385]
[1761271716846,1.37944716,3880.2,3880.1,9.7692]
[1761271718341,1.63751718,3880.2,3880.1,9.7692]
[1761271718542,1.41391718,3880.2,3880.1,9.7692]
[1761271719242,1.15584716,3880.2,3880.1,9.7692]
[1761271719444,0.92454716,3880.2,3880.1,9.7692]
[1761271721347,1.18261666,3880.2,3880.1,9.7692]
[1761271722152,0.92454716,3880.2,3880.1,9.7692]
[1761271722650,0.57534716,3880.2,3880.1,9.7692]
[1761271726242,0.00239836,3880.4,3880.3,0.6892]
[1761271726448,0.34549836,3880.4,3880.3,0.6892]
[1761271726648,0.80039836,3880.4,3880.3,9.5375]
[1761271726854,1.37563954,3880.4,3880.3,9.5375]
[1761271727256,1.37563954,3880.4,3880.3,9.7682]
[1761271727548,1.37563954,3880.4,3880.3,0.6892]
[1761271727754,1.37563954,3880.4,3880.3,9.7682]
[1761271734163,1.37563954,3880.4,3880.3,9.5375]
[1761271734461,1.37563954,3880.4,3880.3,9.3068]
[1761271738463,1.37751148,3880.4,3880.3,9.5375]
[1761271738857,1.37751148,3880.4,3880.3,0.2278]
[1761271739254,0.3493,3880.3,3880.2,9.2956]
[1761271739461,0.8167,3880.3,3880.2,9.2956]
[1761271740166,0.8167,3880.3,3880.2,9.5264]
[1761271743164,1.3938702,3880.3,3880.2,9.5264]
[1761271743463,0.5835,3880.3,3880.2,9.7572]
[1761271743964,0.3493,3880.3,3880.2,9.7572]
[1761271744162,0.00239836,3880.4,3880.3,1.14296]
[1761271744361,0.00239836,3880.4,3880.3,1.9065441]
[1761271744362,0.5796023,3880.4,3880.3,1.9065441]
[1761271745874,0.00239836,3880.4,3880.3,1.9065441]
[1761271750285,0.57984981,3880.4,3880.3,1.9065441]
[1761271750676,0.57984981,3880.4,3880.3,1.74885408]
[1761271752086,0.00239836,3880.4,3880.3,1.74885408]
[1761271753885,0.57999287,3880.4,3880.3,1.74885408]
[1761271754089,0.92929287,3880.4,3880.3,1.74885408]
[1761271754479,1.16349287,3880.4,3880.3,1.74885408]
[1761271754676,1.39669287,3880.4,3880.3,1.51805408]
[1761271755380,1.39669287,3880.4,3880.3,1.74885408]
[1761271756189,1.39669287,3880.4,3880.3,1.05429408]
[1761271756393,1.39669287,3880.4,3880.3,9.5254]
[1761271756686,1.65532298,3880.4,3880.3,0.4484]
[1761271757084,1.65532298,3880.4,3880.3,9.5254]
[1761271757692,1.65532298,3880.4,3880.3,9.5244]
[1761271757884,1.65532298,3880.4,3880.3,0.4484]
[1761271758084,1.65532298,3880.4,3880.3,9.5244]
[1761271758883,1.65532298,3880.4,3880.3,0.4484]
[1761271759181,1.65532298,3880.4,3880.3,9.5244]
[1761271766094,0.9565,3880.0,3879.9,0.4484]
[1761271766311,1.53409451,3880.0,3879.9,9.5244]
[1761271766589,1.79272694,3880.0,3879.9,9.2936]
[1761271767183,1.79272694,3880.0,3879.9,0.2176]
[1761271769896,0.7855,3879.9,3879.8,9.076]
[1761271770101,1.62172694,3879.9,3879.8,9.076]
[1761271771200,1.62172694,3879.9,3879.8,9.3068]
[1761271774100,1.36309451,3879.9,3879.8,9.3068]
[1761271776597,1.36309451,3879.9,3879.8,9.076]
[1761271776598,1.96898859,3879.9,3879.8,9.076]
[1761271776804,2.2270913,3879.9,3879.8,9.076]
[1761271777102,1.96898859,3879.9,3879.8,9.076]
[1761271778894,1.96898859,3879.9,3879.8,9.3068]
[1761271779603,2.22703206,3879.9,3879.8,9.3068]
[1761271780704,2.22703206,3879.9,3879.8,9.076]
[1761271782505,2.22703206,3879.9,3879.8,9.3068]
[1761271786512,1.36309451,3879.9,3879.8,9.7649]
[1761271786712,1.62120509,3879.9,3879.8,9.7649]
[1761271790098,1.62120509,3879.9,3879.8,9.5345]
[1761271790304,1.62130542,3879.9,3879.8,9.5345]
[1761271793216,1.62130542,3879.9,3879.8,9.7649]
[1761271795612,1.62130542,3879.9,3879.8,9.5345]
[1761271795909,1.62130542,3879.9,3879.8,9.7649]
[1761271797515,1.38980542,3879.9,3879.8,9.7649]
[1761271800817,1.39034695,3879.9,3879.8,9.7649]
[1761271801215,1.62184695,3879.9,3879.8,9.5345]
[1761271802306,1.62184695,3879.9,3879.8,9.7651]
[1761271804922,0.9199,3879.5,3879.4,0.2306]
[1761271805225,0.9199,3879.5,3878.5,0.4557]
[1761271805226,0.7908,3878.6,3878.5,0.4557]
[1761271805521,0.7908,3878.6,3878.5,0.6863]
[1761271805522,1.62714695,3878.6,3878.5,0.6863]
[1761271805919,1.41184695,3878.6,3878.5,0.6863]
[1761271807224,1.15309451,3878.6,3878.5,0.6863]
[1761271810222,0.5755,3878.6,3878.5,0.6863]
[1761271810721,0.7908,3878.6,3878.5,0.4557]
[1761271810928,1.36571345,3878.6,3878.5,0.4557]
[1761271811335,1.36571345,3878.6,3878.5,0.6863]
[1761271811924,1.36571345,3878.6,3878.5,0.4557]
[1761271812332,0.7908,3878.6,3878.5,0.4557]
[1761271813436,0.3474,3878.6,3878.5,0.6863]
[1761271815939,0.5755,3878.6,3878.5,0.6863]
[1761271818442,0.7908,3878.6,3878.5,0.4557]
[1761271821740,0.7908,3878.6,3878.5,0.2306]
[1761271822045,0.7908,3878.6,3878.3,0.46731129]
[1761271822245,0.7908,3878.4,3878.3,0.69791129]
[1761271823637,0.7908,3878.4,3878.3,0.23392129]
[1761271824345,0.7908,3878.4,3878.3,0.45902129]
[1761271827550,0.7908,3878.4,3878.3,0.69012129]
[1761271827948,0.7908,3878.4,3878.3,0.45902129]
[1761271829046,0.7908,3878.4,3878.3,0.00332129]
[1761271830750,0.7908,3878.4,3878.3,0.22862129]
[1761271830953,0.7908,3878.4,3878.3,0.00332129]
[1761271831253,0.7908,3878.4,3878.3,0.44882129]
[1761271833157,1.36806694,3878.4,3878.3,0.44882129]
[1761271834256,1.62018627,3878.4,3878.3,0.44882129]
[1761271846959,0.92466694,3878.4,3878.3,0.67962129]
[1761271847864,0.3474,3878.4,3878.3,0.67962129]
[1761271848066,0.7875,3878.4,3878.3,0.00332129]
[1761271848265,1.36566525,3878.4,3878.3,0.00332129]
[1761271848461,1.36566525,3878.4,3878.3,0.22862129]
[1761271849656,1.36566525,3878.4,3878.3,0.44882129]
[1761271851165,1.36566525,3878.4,3878.3,0.67962129]
[1761271851361,1.36566525,3878.4,3878.3,0.44882129]
[1761271852567,1.36566525,3878.4,3878.3,0.00332129]
[1761271852870,1.36566525,3878.4,3878.3,0.22862129]
[1761271856960,1.36566525,3878.4,3877.6,1.16019]
[1761271856961,0.3348,3877.9,3877.1,3.69085305]
[1761271857276,0.5485,3876.9,3876.8,0.90966]
[1761271857662,0.5485,3876.9,3876.8,1.14046]
[1761271858069,0.55122091,3876.9,3876.8,1.14259563]
[1761271859071,0.33752091,3876.9,3876.8,1.14259563]
[1761271859269,0.33752091,3876.9,3876.8,1.14339563]
[1761271861067,0.00272091,3876.9,3876.8,1.14339563]
[1761271862979,0.32352091,3876.9,3876.8,1.14339563]
[1761271863479,0.00272091,3876.9,3876.8,1.14339563]
[1761271863980,0.00272091,3876.9,3876.8,6.90785221]
[1761271865569,0.3208,3877.7,3877.6,1.14118]
[1761271865766,0.3208,3877.7,3877.6,1.90563658]
[1761271865982,0.5456,3877.7,3877.6,1.14118]
[1761271866282,0.7691,3877.7,3877.6,0.91018]
[1761271866584,0.77208279,3877.7,3877.6,0.69508]
[1761271867475,0.77208279,3877.7,3877.6,0.91018]
[1761271873686,0.77208279,3877.7,3877.6,1.14118]
[1761271874692,0.77208279,3877.7,3877.6,1.74797875]
[1761271875091,0.54858279,3877.7,3877.6,1.74797875]
[1761271875589,0.32378279,3877.7,3877.6,1.74797875]
[1761271876186,0.54858279,3877.7,3877.6,1.74797875]
[1761271878778,0.32378279,3877.7,3877.6,1.74797875]
[1761271878990,0.00298279,3877.7,3877.6,1.74797875]
[1761271880893,0.00298279,3877.7,3877.6,10.59597875]
[1761271881684,0.3208,3878.1,3878.0,0.46403]
[1761271881891,0.3208,3878.1,3878.0,10.82192875]
[1761271882795,0.32408955,3878.1,3878.0,10.82192875]
[1761271883683,0.00328955,3878.1,3878.0,11.4287275]
[1761271883888,0.00328955,3878.1,3878.0,11.4680275]
[1761271887683,4.05238262,3879.0,3878.4,0.2651]
[1761271887889,1.04602493,3878.9,3878.8,0.82519875]
[1761271888691,1.04848794,3878.9,3878.8,0.82519875]
[1761271889490,0.46526301,3878.9,3878.8,10.12219875]
[1761271889688,0.78856301,3878.9,3878.8,10.12219875]
[1761271891202,0.78856301,3878.9,3878.8,9.2904]
[1761271891602,0.78856301,3878.9,3878.5,0.2265]
[1761271891603,0.3233,3878.8,3878.5,0.2265]
[1761271891797,0.4398,3878.7,3878.6,9.072]
[1761271892003,0.7631,3878.7,3878.6,9.072]
[1761271894599,0.7631,3878.7,3878.6,9.2985]
[1761271895293,0.3233,3878.7,3878.6,9.7823]
[1761271896098,0.7848,3878.7,3878.6,9.517]
[1761271896304,0.7848,3878.7,3878.6,9.2985]
[1761271896707,0.7848,3878.7,3878.6,9.517]
[1761271900105,0.7848,3878.7,3878.5,0.46397]
[1761271900106,0.4615,3878.7,3878.5,0.46397]
[1761271900313,0.4615,3878.7,3878.6,9.071]
[1761271900513,0.4615,3878.7,3878.6,9.2858]
[1761271900813,0.7916,3878.7,3878.6,9.2858]
[1761271902012,0.7916,3878.7,3878.6,9.5043]
[1761271903701,0.7916,3878.7,3878.6,9.7696]
[1761271903908,0.56056301,3878.9,3878.8,0.6986]
[1761271904106,0.56056301,3878.9,3878.8,1.30539875]
[1761271904605,0.56056301,3878.9,3878.8,1.5105469]
[1761271904913,0.56056301,3878.9,3878.8,1.30539875]
[1761271906805,0.00246301,3878.9,3878.8,1.30539875]
[1761271907006,0.33256301,3878.9,3878.8,1.30539875]
[1761271907204,0.56056301,3878.9,3878.8,1.30539875]
[1761271908310,0.56056301,3878.9,3878.8,1.50927569]
[1761271911308,0.79406301,3878.9,3878.8,1.50927569]
[1761271914215,0.79406301,3878.9,3878.8,1.30539875]
[1761271914817,0.79406301,3878.9,3878.8,1.04009875]
[1761271915616,0.7916,3878.8,3878.7,0.67875]
[1761271915914,0.7916,3878.8,3878.7,1.28554875]
[1761271916118,0.7916,3878.8,3878.7,1.76934875]
[1761271917222,0.5581,3878.8,3878.7,1.76934875]
[1761271917423,0.7916,3878.8,3878.7,1.50404875]
[1761271918221,0.7916,3878.8,3878.7,10.35454875]
[1761271918421,0.7916,3878.8,3878.7,10.13974875]
[1761271918721,0.7916,3878.8,3878.7,10.35454875]
[1761271921017,0.5581,3878.8,3878.7,10.84514875]
[1761271921221,0.3301,3878.8,3878.7,10.84514875]
[1761271921421,0.5656,3878.8,3878.7,10.84514875]
[1761271931522,0.33296301,3878.9,3878.8,0.7256]
[1761271932624,0.79626301,3878.9,3878.8,0.7256]
[1761271933020,0.79626301,3878.9,3878.8,0.4601]
[1761271933326,1.37907108,3878.9,3878.8,0.4601]
[1761271933823,1.37907108,3878.9,3878.8,0.7256]
[1761271937230,0.91577108,3878.9,3878.8,0.7256]
[1761271937526,1.15127108,3878.9,3878.8,0.7256]
[1761271937729,1.37907108,3878.9,3878.8,9.7936]
[1761271937926,1.37907108,3878.9,3878.8,9.5281]
[1761271939427,1.37907108,3878.9,3878.8,9.7936]
[1761271940827,1.37907108,3878.9,3878.8,9.5281]
[1761271943232,1.37907108,3878.9,3878.8,9.7936]
[1761271945129,0.91577108,3878.9,3878.8,9.7936]
[1761271945629,0.3305,3879.6,3879.5,1.18945]
[1761271945931,0.3305,3879.8,3879.7,1.18943]
[1761271946128,0.566,3879.8,3879.7,0.92393]
[1761271946325,0.7938,3879.8,3879.7,9.067]
[1761271946526,0.7938,3879.3,3879.2,0.235]
[1761271946723,0.1393,3879.5,3879.1,3.848]
[1761271946724,0.3305,3879.2,3879.1,3.848]
[1761271946930,0.7938,3879.2,3879.1,0.0031207]
[1761271947235,1.80829794,3879.2,3879.1,0.0031207]
[1761271947932,0.3483,3879.1,3878.3,0.46399]
[1761271948232,1.39155551,3879.4,3877.9,8.293]
[1761271948233,0.1371,3878.0,3877.9,8.293]
[1761271948429,0.9226,3878.0,3877.9,8.5207]
[1761271949134,0.9226,3878.0,3877.9,8.5231635]
[1761271950035,0.9226,3878.0,3877.9,8.7492635]
[1761271953935,0.9226,3878.0,3877.9,8.5231635]
[1761271955037,0.9226,3878.0,3877.9,8.7492635]
[1761271955734,0.9226,3878.0,3877.9,9.0146635]
[1761271957840,0.9226,3878.0,3877.9,8.7492635]
[1761271960345,0.9226,3878.0,3877.9,9.0146635]
[1761271964140,0.7013,3878.0,3877.9,9.0146635]
[1761271964336,0.3483,3878.0,3877.9,9.0146635]
[1761271966346,0.5764,3878.0,3877.9,9.0146635]
[1761271966643,0.7154,3878.0,3877.9,9.0146635]
[1761271966845,0.9497,3878.0,3877.9,8.7492635]
[1761271967445,0.9497,3878.0,3877.9,0.0024635]
[1761271968843,1.71382965,3878.0,3877.9,0.0024635]
[1761271969046,2.28792139,3878.0,3877.9,0.0024635]
[1761271971154,2.5367241,3878.0,3877.9,0.0024635]
[1761271972049,0.9246,3877.5,3877.4,9.75039]
[1761271972647,0.9246,3877.5,3877.4,9.97649]
[1761271973157,0.9246,3877.5,3877.4,9.9790112]
[1761271974455,0.9246,3877.5,3877.4,9.0715212]
[1761271974650,0.9246,3877.5,3877.4,9.2888212]
[1761271976350,1.49958235,3877.5,3877.4,0.2198212]
[1761271980159,1.49958235,3877.5,3877.4,0.4459212]
[1761271982761,0.9246,3877.5,3877.4,0.4459212]
[1761271982957,0.6903,3877.5,3877.4,0.7113212]
[1761271983155,0.5468,3878.1,3877.8,0.7115]
[1761271983348,0.71552904,3878.0,3877.9,0.4461]
[1761271983658,0.3502,3878.0,3877.9,0.7115]
[1761271983853,0.7266,3878.0,3877.9,0.7115]
[1761271984058,0.9623,3878.0,3877.9,0.4461]
[1761271987666,0.9623,3878.0,3877.9,0.7115]
[1761271987857,0.9623,3878.0,3877.9,0.4461]
[1761271988561,1.5092,3878.0,3877.9,0.4461]
[1761271988865,1.5092,3878.0,3877.9,0.7115]
[1761271989166,1.5092,3878.0,3877.9,0.4461]
[1761271989463,0.8217,3877.7,3877.6,11.00970965]
[1761271989661,0.8217,3877.7,3877.6,9.98018]
[1761271990462,0.8217,3877.7,3877.6,10.24558]
[1761271993164,0.3502,3877.6,3877.4,0.2287212]
[1761271993358,0.9623,3877.5,3877.4,0.2287212]
[1761271993553,1.53746496,3877.5,3877.4,0.2287212]
[1761271993860,1.53746496,3877.5,3877.4,0.0025212]
[1761271999374,1.53746496,3877.5,3877.4,0.2287212]
[1761271999672,1.53746496,3877.5,3877.4,0.4486212]
[1761271999870,1.53746496,3877.5,3877.4,0.7140212]
[1761272000771,1.53746496,3877.5,3877.4,0.4486212]
[1761272000972,1.53746496,3877.5,3877.4,0.0025212]
[1761272013684,1.53746496,3877.5,3877.4,0.2191212]
[1761272013892,1.53746496,3877.5,3877.4,0.7075212]
[1761272013893,0.3502,3877.5,3877.4,0.7075212]
[1761272014479,0.5711,3877.5,3877.4,0.7075212]
[1761272014784,0.7128,3877.5,3877.4,0.7075212]
[1761272015087,0.9404,3877.5,3877.4,0.4418212]
[1761272018494,0.7128,3877.5,3877.4,0.7075212]
[1761272018985,0.9404,3877.5,3877.4,0.4418212]
[1761272020690,0.8046,3877.9,3877.8,0.2166]
[1761272020890,1.38140822,3877.9,3877.8,0.2166]
[1761272021493,1.63249189,3877.9,3877.8,0.90335]
[1761272022788,1.40489189,3877.9,3877.8,1.16905]
[1761272022988,1.15380822,3877.9,3877.8,1.16905]
[1761272023188,0.577,3877.9,3877.8,1.16905]
[1761272023788,0.3561,3877.9,3877.8,1.16905]
[1761272025286,0.5469,3878.0,3877.9,0.2657]
[1761272025500,0.903,3878.0,3877.9,0.705]
[1761272026693,0.5469,3878.0,3877.9,0.705]
[1761272026897,0.903,3878.0,3877.9,0.705]
[1761272027190,1.1239,3878.0,3877.9,0.705]
[1761272029298,0.903,3878.0,3877.9,0.705]
[1761272033897,1.4932,3878.0,3877.9,9.5073]
[1761272037598,1.4932,3878.0,3877.9,9.773]
[1761272038801,1.2656,3878.0,3877.9,9.773]
[1761272039000,0.903,3878.0,3877.9,9.773]
[1761272039800,1.1268,3878.0,3877.9,9.773]
[1761272040100,1.2634,3878.0,3877.9,9.773]
[1761272040298,1.4837,3878.0,3877.9,9.5073]
[1761272040495,1.4837,3878.0,3877.9,9.2846]
[1761272042702,1.4837,3878.0,3877.9,9.5093]
[1761272042903,1.4837,3878.0,3877.9,9.7746]
[1761272044404,1.2634,3878.0,3877.9,9.7746]
[1761272044609,0.903,3878.0,3877.9,9.7746]
[1761272046608,1.1268,3878.0,3877.9,9.7746]
[1761272046808,1.2634,3878.0,3877.9,9.7746]
[1761272047301,0.5469,3878.0,3877.9,9.7746]
[1761272048002,0.8943,3878.0,3877.9,9.7746]
[1761272049814,0.5469,3878.0,3877.9,9.7746]
[1761272050513,0.5469,3878.0,3877.9,11.75625164]
[1761272050715,0.5469,3878.0,3877.9,11.14919005]
[1761272051008,0.5469,3878.0,3877.9,9.7746]
[1761272051213,0.8943,3878.0,3877.9,10.38166159]
[1761272052318,0.8943,3878.0,3877.9,11.75625164]
[1761272056815,0.8943,3878.0,3877.9,0.2166]
[1761272056816,1.475,3878.0,3877.9,0.2166]
[1761272057015,1.475,3878.0,3877.9,7.8306]
[1761272057213,2.05133995,3878.0,3877.9,7.8306]
[1761272058711,2.05133995,3878.0,3877.9,7.614]
[1761272060213,2.05114083,3878.0,3877.9,7.614]
[1761272060413,0.7915,3877.8,3877.7,0.46406]
[1761272060616,0.7915,3877.8,3877.7,9.53106]
[1761272060807,0.7915,3877.8,3877.7,9.75906]
[1761272062325,0.7915,3877.8,3877.7,9.295]
[1761272062515,0.7915,3877.8,3877.7,9.067]
[1761272063517,1.3389,3877.8,3877.7,9.067]
[1761272064920,1.3389,3877.8,3877.7,9.295]
[1761272065217,1.3389,3877.8,3877.7,9.785]
[1761272065415,0.8948,3877.8,3877.7,10.5496455]
[1761272069119,0.5474,3877.8,3877.7,10.5496455]
[1761272070328,0.5474,3877.8,3877.7,11.92423555]
[1761272072422,0.5474,3877.8,3877.7,15.77223555]
[1761272073128,0.4891,3878.5,3878.4,0.4643]
[1761272073428,1.0650208,3878.5,3878.4,9.7968]
[1761272073614,1.2835208,3878.5,3878.4,9.7968]
[1761272074231,1.5051208,3878.5,3878.4,9.5313]
[1761272074531,1.5051208,3878.5,3878.4,9.99528]
[1761272075726,1.75361845,3878.5,3878.4,9.5313]
[1761272076027,1.75361845,3878.5,3878.4,9.2972]
[1761272079226,1.75361845,3878.5,3878.4,9.067]
[1761272079430,1.40161845,3878.5,3878.3,0.46399]
[1761272079732,1.3680208,3878.4,3878.3,0.46399]
[1761272080031,1.3680208,3878.4,3878.3,0.69419]
[1761272080331,1.3680208,3878.4,3878.3,0.92829]
[1761272082330,1.3680208,3878.4,3878.3,1.19379]
[1761272083235,1.3680208,3878.4,3878.3,0.92829]
[1761272084530,1.1464208,3878.4,3878.3,1.19379]
[1761272084735,0.9279208,3878.4,3878.3,1.19379]
[1761272090639,1.3680208,3878.4,3878.3,1.19379]
[1761272092648,1.3680208,3878.4,3878.3,0.92829]
[1761272093349,1.3680208,3878.4,3878.3,1.19379]
[1761272094850,1.1464208,3878.4,3878.3,1.19379]
[1761272095353,1.3680208,3878.4,3878.3,0.92829]
[1761272095944,1.3680208,3878.4,3878.3,1.19379]
[1761272096546,1.1464208,3878.4,3878.3,1.19379]
[1761272101257,1.27312453,3879.2,3879.1,0.6839]
[1761272101462,0.92712453,3879.7,3879.1,10.5471455]
[1761272101759,0.346,3879.5,3879.4,1.9450055]
[1761272101957,0.346,3879.5,3879.4,11.0110055]
[1761272101958,0.5806,3879.5,3879.4,11.0110055]
[1761272102155,0.9306,3879.5,3879.4,9.066]
[1761272102647,0.9306,3879.5,3879.4,9.7825]
[1761272102849,0.7115,3879.5,3879.4,9.7825]
[1761272104263,0.9306,3879.5,3879.4,9.517]
[1761272108061,0.7997,3879.7,3879.6,0.451]
[1761272108255,0.346,3879.7,3879.6,0.7165]
[1761272108658,0.00180763,3879.8,3879.7,1.18033]
[1761272108954,0.00180763,3879.8,3879.7,11.0099755]
[1761272111162,0.5806,3880.7,3880.6,0.7165]
[1761272111860,0.58286864,3880.7,3880.6,0.71957896]
[1761272112264,0.34826864,3880.7,3880.6,0.71957896]
[1761272113864,0.80196864,3880.7,3880.6,0.00307896]
[1761272116263,6.56661414,3880.7,3880.6,0.00307896]
[1761272116662,7.13781756,3880.7,3880.6,0.00307896]
[1761272118775,6.97941137,3880.7,3880.6,0.00307896]
[1761272120170,0.1309,3880.0,3879.9,0.46379]
[1761272120373,0.9306,3880.0,3879.9,0.46379]
[1761272121276,0.9306,3880.0,3879.9,0.46619208]
[1761272122168,0.9306,3880.0,3879.9,0.00240208]
[1761272122766,1.53683931,3880.0,3879.9,0.00240208]
[1761272123073,0.7997,3879.2,3879.1,0.91489]
[1761272123283,0.5806,3879.2,3879.1,1.78662931]
[1761272123980,0.5806,3879.2,3879.1,1.78997615]
[1761272124274,0.5806,3879.2,3879.1,1.52447615]
[1761272124477,0.7997,3879.2,3879.1,1.52447615]
[1761272125883,0.7997,3879.2,3879.1,1.78997615]
[1761272126476,0.7997,3879.2,3879.1,1.52447615]
[1761272126979,0.7997,3879.2,3879.1,1.06058615]
[1761272127368,0.7997,3879.2,3879.1,0.00334684]
[1761272128671,0.346,3879.2,3879.1,1.79268615]
[1761272129376,0.346,3879.2,3879.1,1.18644684]
[1761272129576,0.5754,3879.2,3879.1,1.18644684]
[1761272132078,0.346,3879.2,3879.1,1.18644684]
[1761272134478,0.5834,3879.2,3879.1,1.18644684]
[1761272136474,0.8106,3879.2,3879.1,0.92084684]
[1761272137878,0.8106,3879.2,3879.1,1.18594684]
[1761272138178,0.5834,3879.2,3879.1,1.18594684]
[1761272139477,0.3683,3880.0,3879.4,0.7246]
[1761272139673,1.03451092,3879.9,3879.8,0.4595]
[1761272139878,1.03451092,3879.9,3879.8,1.06573931]
[1761272140078,1.35601092,3879.9,3879.8,1.06573931]
[1761272141580,1.35601092,3879.9,3879.8,1.33083931]
[1761272141776,0.5589,3879.9,3879.8,1.33083931]
[1761272142275,1.35633934,3879.9,3879.8,1.06573931]
[1761272142479,1.35633934,3879.9,3879.8,0.60623931]
[1761272151187,1.60312668,3879.9,3879.8,0.60623931]
[1761272152488,1.60312668,3879.9,3879.8,0.83323931]
[1761272156100,1.35633934,3879.9,3879.8,0.83323931]
[1761272156291,1.60313604,3879.9,3879.8,0.83323931]
[1761272156690,1.35633934,3879.9,3879.8,0.83323931]
[1761272157089,1.60313097,3879.9,3879.8,0.83323931]
[1761272157496,1.35633934,3879.9,3879.8,1.06573931]
[1761272158094,0.7861,3879.9,3879.8,1.06573931]
[1761272158290,1.35780807,3879.9,3879.8,1.06573931]
[1761272159092,1.35780807,3879.9,3879.8,1.33113931]
[1761272159285,0.5589,3879.9,3879.8,1.33113931]
[1761272160791,0.7918,3879.9,3879.8,1.33113931]
[1761272161389,0.7918,3879.9,3879.8,1.06573931]
[1761272161584,1.36343153,3879.9,3879.8,0.60623931]
[1761272165393,0.7721,3879.4,3879.3,0.46388]
[1761272165600,0.7721,3879.4,3879.3,1.07011931]
[1761272166387,0.7721,3879.4,3879.3,1.30641931]
[1761272167698,0.7721,3879.4,3879.3,0.60623931]
[1761272168803,0.7721,3879.2,3879.1,0.00334684]
[1761272169591,0.7721,3879.2,3879.1,0.23964684]
[1761272169791,0.7721,3879.2,3879.1,0.46614684]